Cogmind - Beta 15 @@@ ROGUE MODE // 2025.10.15 @ 16:25:09 Player: Air Result: Destroyed by D-53 Grenadier with Mini Grenade Launcher Performance ------------- Evolutions (0) 0 Regions Visited (2) 400 Robots Destroyed (28) 140 Value Destroyed (578) 578 Prototype IDs (0) 0 Alien Tech Used (0) 0 Bonus (0) 0 TOTAL SCORE: 1118 Bonus ------- None Cogmind --------- Core Integrity 0/250 Matter 220/300 Energy 250/250 System Corruption 0% Temperature Cool (10) Movement Treading (320) Ox2 Location -10/Mines Parts ------- > --- POWER (1) -------- Ion Engine > --- PROPULSION (2) --- Light Treads Light Treads > --- UTILITY (2) ------ Huge Storage Unit Weight Redist. System > --- WEAPON (2) ------- Improved Light Cannon Improved Light Cannon > --- INVENTORY (25) --- Light Ion Engine Light Treads Aluminum Leg Aluminum Leg Compact Wheel Flight Unit Small Storage Unit Large Storage Unit Experimental Sensor Array ECM Suite Heavy EM Pulse Gun Heavy EM Pulse Gun Light Assault Rifle Improved Light Cannon Improved Light Cannon Grenade Launcher Datajack Peak State ------------ > --- POWER ------------ Ion Engine > --- PROPULSION ------- Aluminum Leg Aluminum Leg > --- UTILITY ---------- Huge Storage Unit Weight Redist. System > --- WEAPON ----------- Improved Light Cannon Improved Light Cannon > --- INVENTORY -------- Light Ion Engine Light Treads Light Treads Light Treads Compact Wheel Flight Unit Small Storage Unit Large Storage Unit ECM Suite Heavy EM Pulse Gun Heavy EM Pulse Gun Light Assault Rifle Improved Light Cannon Improved Light Cannon Grenade Launcher Datajack [Rating: 12] Favorites ----------- Power Ion Engine Engine Ion Engine Propulsion Aluminum Leg Treads Light Treads Leg Aluminum Leg Wheel Compact Wheel Utility Weight Redist. System Device Weight Redist. System Storage Large Storage Unit Weapon Improved Light Cannon Energy Gun Heavy EM Pulse Gun Ballistic Cannon Improved Light Cannon Launcher Grenade Launcher Special Melee Weapon Datajack Build | -11 -10 -10 ------- Run | Yrd Mat Min Slots Evolved . | . . . Power . | . . . Propulsion . | . . . Utility . | . . . Weapon . | . . . Parts Attached 26 | 10 14 2 Power 2 | 1 1 . Engine 2 | 1 1 . Core . | . . . Reactor . | . . . Propulsion 9 | 6 3 . Treads 2 | 2 . . Leg 5 | 2 3 . Wheel 2 | 2 . . Hover . | . . . Flight . | . . . Utility 5 | 1 3 1 Device 1 | . 1 . Storage 4 | 1 2 1 Processor . | . . . Hackware . | . . . Protection . | . . . Artifact . | . . . Weapon 10 | 2 7 1 Energy Gun 4 | 2 2 . Energy Cannon . | . . . Ballistic Gun . | . . . Ballistic Cannon 4 | . 4 . Launcher 1 | . . 1 Special Weapon . | . . . Impact Weapon . | . . . Slashing Weapon . | . . . Piercing Weapon . | . . . Special Melee Weapon 1 | . 1 . Unidentified Prototypes . | . . . Parts Lost . | . . . Power . | . . . Propulsion . | . . . Utility . | . . . Weapon . | . . . Highest Loss Streak . | . . . To Critical Strikes . | . . . Average Backups 14 | 4 14 16 Power 1 | 1 2 1 Propulsion 4 | 2 4 4 Utility 2 | . 1 3 Weapon 5 | . 5 6 Tool/Special . | . . . Unused Backups 7 | . 1 6 Power 1 | . . 1 Propulsion 2 | . . 2 Utility 3 | . 1 2 Weapon 1 | . . 1 Tool/Special . | . . . Average Slot Usage (%) 99 | . 99 100 Engine 14 | . 14 14 Treads 3 | . . 24 Leg 24 | . 28 4 Device 12 | . 11 14 Storage 15 | . 16 14 Energy Gun 7 | . 9 . Ballistic Cannon 19 | . 18 28 Peak Build Rating 12 | 6 11 12 Average Rating 10 | 5 10 11 On Entrance 5 | . 6 11 Naked Turns . | . . . Heaviest Build 93 | 12 53 93 Greatest Support 46 | 26 26 46 Greatest Overweight (x) 3 | 1 2 3 Average Overweight (x) 1 | . . 1 Largest Inventory Capacity 25 | 8 15 25 Average Capacity 16 | 7 14 24 Most Carried 17 | 8 15 17 Average Carried 14 | 4 14 16 Final Capacity 25 | 8 15 25 Final Carried 17 | 8 14 17 Class Distribution -------------------- 100% | Mutant Dominant Class ---------------- Mutant | -10/Materials Mutant | -10/Mines Resources | -11 -10 -10 ----------- Run | Yrd Mat Min Matter Collected 827 | 223 514 90 Remotely . | . . . Salvage Created 642 | 81 543 18 Parts 36 | 2 31 3 Haulers Intercepted 2 | . 2 . Recyclers Shooed . | . . . Parts Field Recycled . | . . . Retrieved Matter . | . . . Parts Self-Destructed . | . . . Prevented . | . . . Kills | -11 -10 -10 ------- Run | Yrd Mat Min Combat Hostiles Destroyed 20 | . 17 3 Guns 5 | . 5 . Cannons 12 | . 11 1 AOE 3 | . 1 2 Classes Destroyed 6 | 1 5 . Builder 2 | . 2 . Hauler 2 | . 2 . Recycler 1 | 1 . . Watcher 3 | . 3 . Swarmer 9 | . 6 3 Grunt 11 | . 11 . Best Kill Streak 7 | 1 7 3 Combat Bots Only 5 | . 5 3 Max Kills in Single Turn 2 | 1 2 2 Gunslinging 1 | . 1 . Exploded 2 | . 1 2 Melee . | . . . Uniques/NPCs Destroyed . | . . . Combat | -11 -10 -10 -------- Run | Yrd Mat Min Hostile Shots Fired 102 | . 88 14 Missed 35 | . 28 7 Hits 67 | . 60 7 Projectile 67 | . 60 7 AOE 4 | . . 4 Critical Strikes 1 | . 1 . Damage Taken 803 | . 631 172 Core 259 | . 147 112 Absorbed by Shields . | . . . Core Remaining (%) 100 | 100 . . Volleys Fired 79 | 2 72 5 Largest 2 | 2 2 2 Hottest 90 | 80 90 66 Shots Fired 155 | 4 141 10 Gun 55 | 4 51 . Cannon 98 | . 90 8 Launcher 2 | . . 2 Special . | . . . Kinetic 98 | . 90 8 Thermal 4 | 4 . . Explosive 2 | . . 2 Electromagnetic 51 | . 51 . Robot Hit Streak 9 | 1 9 1 Robot Miss Streak 8 | 1 8 3 Penetration Max . | . . . Secondary Targets 3 | . 3 . Max Gunslinging Chain 1 | . 1 . Shots Hit Robots 83 | 2 78 3 Core Hits 33 | 2 27 4 Critical Kills . | . . . Critical Parts Destroyed . | . . . Critical Strikes 2 | . 2 . Blast 2 | . 2 . Melee Attacks 2 | . 2 . Impact . | . . . Slashing . | . . . Piercing . | . . . Sneak Attacks 2 | . 2 . Combat Hostiles . | . . . Follow-up Attacks . | . . . Damage Inflicted 1891 | 24 1671 196 Guns 436 | 24 412 . Cannons 1242 | . 1181 61 Explosions 192 | . 57 135 Melee . | . . . Ramming 21 | . 21 . Kinetic 1242 | . 1181 61 Thermal 81 | 24 57 . Explosive 135 | . . 135 Electromagnetic 412 | . 412 . Impact . | . . . Slashing . | . . . Piercing . | . . . Highest Corruption . | . . . Average Corruption . | . . . Corruption Purged . | . . . Corruption Blocked . | . . . Overload Shots . | . . . Overflow Damage 8 | . 2 6 Projectiles 2 | . 2 . Explosions 6 | . . 6 Melee . | . . . Knockbacks 19 | . 19 . Impact . | . . . Kinetic 17 | . 17 . Secondary 2 | . 2 . Self-Inflicted Damage . | . . . Shots . | . . . Rammed . | . . . Targets Rammed 5 | . 5 . Kicked 5 | . 5 . Crushed . | . . . Highest Temperature 242 | 36 242 10 Average Temperature 56 | 20 60 4 Received Heat Transfer 246 | . 246 . Siege Activations . | . . . Martial Activations . | . . . Shielding Activations . | . . . Robots Disrupted . | . . . Combat Hostiles . | . . . Robots Corrupted . | . . . Combat Hostiles . | . . . Parts Fried 2 | . 2 . Impact Corruptions . | . . . Robots Melted . | . . . Combat Hostiles . | . . . Parts Melted . | . . . Heat Transferred 50 | 50 . . Parts Sabotaged . | . . . Parts Stolen . | . . . Parts Stripped . | . . . Power Chain Reactions 1 | . 1 . Alert | -11 -10 -10 ------- Run | Yrd Mat Min Maximum Alert Level 1 | . 1 . Low Security (%) 97 | 100 96 100 Level 1 2 | . 3 . Level 2 . | . . . Level 3 . | . . . Level 4 . | . . . Level 5 . | . . . High Security . | . . . Max Security . | . . . Peak Influence 218 | 5 218 82 Initial 82 | . . 82 Average 67 | 1 76 27 Influence Increases 644 | 5 550 89 Destroy 0b10 Robot/C 400 | . 340 60 Destroy 0b10 Robot/NC 40 | 5 35 . Destroy Leader 100 | . 90 10 Successful Hack 13 | . 13 . Select Force Hacks 30 | . 30 . Disable Machine 30 | . 15 15 Destroy Structure 16 | . 12 4 Lose Combat Pursuer 15 | . 15 . Influence Decreases 583 | 5 338 240 Entered New Map 130 | . . 130 Time Decay 453 | 5 338 110 Squads Dispatched 4 | . 4 . Investigation 2 | . 2 . Extermination . | . . . Reinforcement 2 | . 2 . Assault . | . . . Garrison . | . . . Intercept . | . . . Searches Triggered . | . . . Construction Impeded . | . . . Haulers Reinforced . | . . . Active Scanning Responses . | . . . Cargo Convoy Interrupts . | . . . Stealth | -11 -10 -10 --------- Run | Yrd Mat Min Distress Signals 1 | . 1 . Communications Jammed . | . . . Distress Signals . | . . . Times Spotted 37 | . 32 5 Peak Tracking Total 5 | . 5 3 Tactical Retreats 1 | . 1 . Traps | -11 -10 -10 ------- Run | Yrd Mat Min Traps Triggered 1 | . 1 . Indirectly . | . . . Trap Hack Attempts 79 | . 79 . Triggered 1 | . 1 . Disarmed 7 | . 7 . Reprogrammed 5 | . 5 . Reused . | . . . Traps Extracted . | . . . Installed . | . . . Triggered . | . . . Machines | -11 -10 -10 ---------- Run | Yrd Mat Min Machines Disabled 2 | . 1 1 Max in Single Turn 1 | . 1 1 Machines Repaired . | . . . Machines Dismantled . | . . . Machines Sabotaged . | . . . Overloaded Fab Kills . | . . . Hacking | -11 -10 -10 --------- Run | Yrd Mat Min Machines Accessed 8 | . 8 . Terminals 6 | . 6 . Fabricators . | . . . Repair Stations . | . . . Recycling Units 2 | . 2 . Scanalyzers . | . . . Garrison Access . | . . . Total Hacks 28 | . 28 . Successful 12 | . 12 . Failed 16 | . 16 . Catastrophic 2 | . 2 . Database Lockouts . | . . . Manual 10 | . 10 . Terminals 22 | . 22 . Fabricators . | . . . Repair Stations . | . . . Recycling Units 6 | . 6 . Scanalyzers . | . . . Garrison Access . | . . . Terminal Hacks 7 | . 7 . Robot Analysis 1 | . 1 . Branch Access Points 1 | . 1 . Terminal Index 1 | . 1 . Alert Level 1 | . 1 . Locate Traps 2 | . 2 . Disarm Traps 1 | . 1 . Fabricator Hacks . | . . . Repair Station Hacks . | . . . Recycling Unit Hacks 2 | . 2 . Report Inventory 1 | . 1 . Retrieve Components 1 | . 1 . Scanalyzer . | . . . Garrison Access Hacks . | . . . Unauthorized Hacks 3 | . 3 . Terminals 2 | . 2 . Botnet 2 | . 2 . Fabricators . | . . . Repair Stations . | . . . Recycling Units 1 | . 1 . Tunnel 1 | . 1 . Scanalyzers . | . . . Garrison Access . | . . . Data Cores Recovered . | . . . Used . | . . . Hacking Detections 8 | . 8 . Full Trace Events 1 | . 1 . Feedback Events . | . . . Feedback Blocked . | . . . Robot Schematics Acquired . | . . . Robots Built . | . . . Authchips . | . . . Time . | . . . Total Robot Build Rating . | . . . Part Schematics Acquired . | . . . Parts Built . | . . . Authchips . | . . . Time . | . . . Total Part Build Rating . | . . . Parts Repaired . | . . . Time . | . . . Parts Recycled . | . . . Recycled Matter . | . . . Retrieved Matter . | . . . Retrieved Components 9 | . 9 . Parts Scanalyzed . | . . . Part Schematics Acquired . | . . . Parts Damaged . | . . . Bothacking | -11 -10 -10 ------------ Run | Yrd Mat Min Used RIF Installer . | . . . Robots Hacked 1 | . 1 . Non-combat 1 | . 1 . Combat . | . . . Robot Hacks Applied 1 | . 1 . no_distress 1 | . 1 . Relay Couplers Released . | . . . Fabnet Peak Effective % . | . . . Robots Rewired . | . . . Allies Hacked . | . . . Hacks Repelled . | . . . Allies | -11 -10 -10 -------- Run | Yrd Mat Min Total Allies . | . . . Largest Group . | . . . Highest-Rated Group . | . . . Highest-Rated Ally . | . . . Total Orders . | . . . Ally Attacks . | . . . Total Damage . | . . . Kills . | . . . Allies Corrupted . | . . . Allies Melted . | . . . Intel | -11 -10 -10 ------- Run | Yrd Mat Min Active Infowar (turns) . | . . . Robot Analysis Total 1 | . 1 . Derelict Logs Recovered . | . . . Drone Launches . | . . . Drone Recoveries . | . . . Exploration | -11 -10 -10 ------------- Run | Yrd Mat Min Turns Passed 2794 | 67 2315 412 Spaces Moved 1061 | 38 894 129 Core 4 | 4 . . Treads 107 | . . 107 Legs 933 | 17 894 22 Wheels 17 | 17 . . Hover . | . . . Flight . | . . . Fastest Speed 50 | 50 120 190 Average Speed 199 | 100 189 301 Slowest Speed 330 | 120 260 330 Overloaded Moves . | . . . Propulsion Burnouts . | . . . Robots Hopped . | . . . Potential Cave-ins . | . . . Cave-ins Triggered . | . . . Exploration Rate (%) 42 | 3 93 30 Regions Visited 2 Branch Regions 1 Pre-discovered Areas 1 | . 1 . Known Exits Taken 1 | . 1 . Unknown Exits Taken 1 | 1 . . Scrap Searched 1 | . . 1 Spaces Dug . | . . . Terrain Destroyed 11 | . 7 4 Melee . | . . . Projectile 3 | . 2 1 AOE 8 | . 5 3 Terrain Rammed . | . . . Walls Destroyed . | . . . Machines Disabled . | . . . Actions | -11 -10 -10 --------- Run | Yrd Mat Min Total 1569 | 57 1371 141 Wait 284 | . 284 . Move 1059 | 37 893 129 Hop . | . . . Pick Up 21 | 8 11 2 Fast Attach 8 | 6 2 . Attach . | . . . Detach . | . . . Swap 23 | 4 14 5 Drop 9 | . 9 . Fire 79 | 2 72 5 Melee 2 | . 2 . Ram . | . . . Kick 5 | . 5 . Crush . | . . . Escape Stasis . | . . . Rewire . | . . . Trap 79 | . 79 . Miscellaneous . | . . . Route ------- -11/Scrapyard -10/Materials (discovered 5 exits: [*Mat x3] / *Min / [*Sub]) -10/Mines History --------- Turn | Location | Event 16 | -11/Scrapyard | Discovered new exit (range 16) 68 | -11/Scrapyard | Entered Materials 307 | -10/Materials | Build established: Mutant 1238 | -10/Materials | Discovered new exit (range 11) 1245 | -10/Materials | Discovered new exit (range 5) 1587 | -10/Materials | Identified exit to Mines 1788 | -10/Materials | Discovered new exit (range 12) 2124 | -10/Materials | Discovered new exit (range 10) 2300 | -10/Materials | Core integrity fell below 50% 2383 | -10/Materials | Entered Mines 2473 | -10/Mines | Found a damaged Exp. Sensor Array with a note attached 2480 | -10/Mines | Found Prototype Device 2756 | -10/Mines | Assembled infested the area 2794 | -10/Mines | Core integrity fell below 20% 2795 | -10/Mines | Destroyed by D-53 Grenadier with Mini Grenade Launcher Last Messages --------------- 02747_ U-05 Engineer lays Concrete. 02749_ R-06 Scavenger collects Lgt. Ion Engine. 02750_ U-05 Engineer lays Concrete. 02750_ K-01 Serf collects debris. 02751_ U-05 Engineer lays Concrete. 02754_ R-06 Scavenger collects Lgt. Ion Engine. 02754_ U-05 Engineer lays Concrete. 02756_ ALERT: Infestation in the mines, dispatching Demolisher response squad. 02756_ U-05 Engineer lays Concrete. 02764_ C-30 ARC bursts open, deploying its payload. 02764_ D-53 Grenadier unfolds itself. 02764_ U-05 Engineer lays Concrete. 02770_ U-05 Engineer builds a Wall. 02770_ U-05 Engineer lays Concrete. 02776_ U-05 Engineer builds a Wall. 02777_ U-05 Engineer lays Concrete. 02781_ U-05 Engineer builds a Wall. 02783_ U-05 Engineer lays Concrete. 02793_ U-05 Engineer builds a Wall. Map ----- +----------------------------------------------------+ | | | | | | | ?????????????????????????????????????????????????? | | ?????????????????????????####????????????????????? | | ?????????????????????????# #######?????????????? | | ?????????????????????????# ##????#####???? | | ?????????????????????????# ###### ##??? | | ??????????????????????????# ##?? | | ??????????????????????????# ### | | ??????????????????????????## ## | | ???????????????????????????##### #### | | ???????????????????????????????### #??### | | ?????????????????????????????????## #????## | | ???????????????????????????####???# #??#### # | | ??????????????????????????## #?## ### ## ## | | ????????????? ????????????# ## ## ##? | | ???????????? ???????????# ### ##?? | | ??????????? ??????????# #####??? | | ???????????# #?????????## ##????? | | ????????????# #????####### #????? | | ?????????????# #??## ##### #????? | | ????????????## ### #?### ##????? | | ???????????## # ##??## ##?????? | | ???????????# #???## #??????? | | ????????#### @ #?????# ## ##?????## | | ???????? " ####### ## ##?????## | | ?????? % % ####### | | ???????????##; %d | | ????????????## d ############ | | ?????????????# ### ####??????????######### | | ??????????? u ########?????????????????????# | | ??????????? ???????????????????????????????## | | ???????????# ?????????????????????????????????## | | ????????????????????????????????????????????????## | | ?????????????????????????????????????????????????# | | ?????????????????????????????????????????????????? | | ?????????????????????????????????????????????????? | | ?????????????????????????????????????????????????? | | ?????????????????????????????????????????????????? | | ?????????????????????????????????????????????????? | | ?????????????????????????????????????????????????? | | ?????????????????????????????????????????????????? | | ?????????????????????????????????????????????????? | | ?????????????????????????????????????????????????? | | ?????????????????????????????????????????????????? | | ?????????????????????????????????????????????????? | | ?????????????????????????????????????????????????? | | ?????????????????????????????????????????????????? | | ?????????????????????????????????????????????????? | +----------------------------------------------------+ Best States ------------- Heat Dissipation 25 Energy Generation 10 Energy Capacity 250 Matter Stores 300 Matter Capacity 300 Sight Range 16 Terrain Scan Density 10 Additional Mass Support 6 Evasion (%) 50 Recoil Reduction 2 Item Schematics ----------------- None Robot Schematics ------------------ None Fabricated ------------ Nothing Repaired ---------- Nothing Alien Tech Used ----------------- None Achievements -------------- Hehehe Challenges ------------ None Game ------ Seed NanofilamentsPrecisionGuard Manual? 0 Play Time 00:27:29 Cumulative 11.5 hours Start 2025.10.15 @ 15:59:43 End 2025.10.15 @ 16:25:09 Sessions 1 Manual Loads 0 Difficulty Rogue Special Mode None Game No. 14 Rogue 14 Adventurer 0 Explorer 0 Win Type - Total 0 Types 0/0/0/0/0/0/0/0/0/0 Lore% 17 Gallery% 16 Achievement% 19 Wizard Run 0 Options --------- Layout 1 ASCII 0 Keyboard 0 Movement Mouse Keybinds 0 Fullscreen 1 Font 16/SmallcapsGlow Map View 55x38 Zoom Use 0% Tactical HUD 1 Map Filters NONE Filters NONE Steam 1 RUN: 1a3ca75d-df08-4ed7-9d64-492f014e21d0